bitfinex/quotes_ETHUSD_20241022
["timestamp","ask_amount","ask_price","bid_price","bid_amount"]
[1729595933196,1.66171518,2635.3,2635.1,0.56841223]
[1729595933491,1.66171518,2635.3,2635.1,0.72541766]
[1729595934489,1.66171518,2635.2,2635.1,0.72541766]
[1729595934689,1.66171518,2635.3,2635.1,0.72541766]
[1729595934893,3.79458,2635.4,2635.1,0.72541766]
[1729595935057,1.66171518,2635.2,2635.1,0.72541766]
[1729595935262,1.66171518,2635.2,2635.1,0.15700543]
[1729595935896,5.45648518,2635.2,2635.1,0.15700543]
[1729595936205,3.79496,2635.1,2634.8,0.778]
[1729595936403,1.66171518,2635.0,2634.9,4.0]
[1729595936760,5.45667518,2635.1,2634.9,4.0]
[1729595937263,0.7588,2635.3,2634.9,4.0]
[1729595937264,5.45649518,2635.2,2634.9,4.0]
[1729595937592,3.81319107,2635.6,2635.1,0.8314]
[1729595937593,3.79441,2635.5,2635.1,0.8314]
[1729595937902,5.47492625,2635.6,2635.1,4.62631]
[1729595938059,1.66171518,2635.4,2635.1,4.62625]
[1729595938265,1.66171518,2635.4,2635.2,0.74045659]
[1729595938459,1.66171518,2635.5,2635.2,4.53521659]
[1729595939193,1.66171518,2635.5,2635.2,8.53521659]
[1729595940362,1.66171518,2635.4,2635.2,8.53521659]
[1729595941298,5.45634518,2635.3,2635.2,4.0]
[1729595941657,6.26794518,2635.3,2635.2,4.0]
[1729595942889,5.45634518,2635.3,2634.8,6.5734175]
[1729595943098,1.66171518,2635.3,2634.9,7.7951]
[1729595943283,1.66171518,2635.3,2635.0,1.981734]
[1729595943697,1.66171518,2635.1,2635.0,1.981734]
[1729595943877,1.66171518,2635.1,2635.0,0.8151]
[1729595944074,1.66171518,2635.1,2635.0,4.8151]
[1729595944281,1.66171518,2635.1,2635.0,0.8151]
[1729595945174,1.66171518,2635.2,2635.0,0.97209449]
[1729595945414,3.79463,2635.3,2635.0,2.1064001]
[1729595945834,1.66171518,2635.4,2635.0,2.1064001]
[1729595945835,5.45620518,2635.4,2635.0,5.9014501]
[1729595945988,3.79431,2635.6,2635.1,1.73760911]
[1729595946188,5.45602518,2635.6,2635.1,3.95181616]
[1729595946397,1.66171518,2635.5,2635.2,2.78034162]
[1729595946754,1.66171518,2635.5,2635.3,0.67321578]
[1729595947231,1.66171518,2635.5,2635.3,0.83000528]
[1729595947393,5.45602518,2635.6,2635.3,0.83000528]
[1729595947594,9.25033518,2635.6,2635.3,0.83000528]
[1729595947789,5.45602518,2635.6,2635.3,0.83000528]
[1729595947989,1.66171518,2635.5,2635.3,0.83000528]
[1729595948489,9.25029518,2635.6,2635.3,4.83000528]
[1729595948688,5.45598518,2635.6,2635.3,4.83000528]
[1729595948889,5.45598518,2635.6,2635.4,0.8088]
[1729595949089,1.66171518,2635.6,2635.5,0.15665286]
[1729595949940,5.45591518,2635.6,2635.5,0.15665286]
[1729595950104,6.24681518,2635.6,2635.2,0.8088]
[1729595950303,1.66171518,2635.3,2635.1,2.78272102]
[1729595950532,1.66171518,2635.3,2635.2,4.0]
[1729595950906,5.45634518,2635.3,2635.2,4.0]
[1729595951131,6.22034518,2635.3,2635.2,4.0]
[1729595951652,6.22034518,2635.3,2634.9,6.78272102]
[1729595951854,5.45665518,2635.1,2634.9,6.78272102]
[1729595952443,1.66171518,2635.1,2634.9,4.74916125]
[1729595952643,1.66171518,2635.1,2634.9,7.53510528]
[1729595953011,1.66171518,2635.1,2635.0,0.28425814]
[1729595953403,5.45666518,2635.1,2635.0,0.28425814]
[1729595955343,5.45666518,2635.1,2635.0,3.07020217]
[1729595955660,5.45666518,2635.1,2635.0,0.28425814]
[1729595955952,5.45666518,2635.1,2635.0,3.07020217]
[1729595956239,5.45666518,2635.1,2635.0,0.28425814]
[1729595956426,5.45666518,2635.1,2634.9,0.74916125]
[1729595956627,5.45666518,2635.1,2634.8,4.97068981]
[1729595956628,1.66171518,2635.1,2634.8,4.97068981]
[1729595956831,1.66171518,2635.1,2635.0,0.28430697]
[1729595957033,1.66171518,2635.4,2635.0,0.28430697]
[1729595957237,1.66171518,2635.4,2635.1,3.07011174]
[1729595957445,1.66171518,2635.4,2635.2,0.28430697]
[1729595957644,3.0,2635.6,2635.3,0.28430697]
[1729595957813,3.0,2635.6,2635.4,0.28430697]
[1729595957814,1.66171518,2635.6,2635.4,0.28430697]
[1729595958021,1.66171518,2635.6,2635.3,6.58041477]
[1729595958022,1.66171518,2635.6,2635.5,0.28430697]
[1729595958642,5.45591518,2635.6,2635.5,0.28430697]
[1729595959875,7.46,2635.8,2635.5,0.28430697]
[1729595960027,7.46,2635.8,2635.6,4.61463]
[1729595960360,7.46,2635.8,2635.7,0.78986688]
[1729595960660,7.46,2635.8,2635.7,0.94631784]
[1729595961170,6.21172518,2636.1,2635.7,0.94631784]
[1729595961464,1.66171518,2636.1,2635.8,0.28430697]
[1729595961673,1.66171518,2636.0,2635.9,0.28430697]
[1729595961825,5.45533518,2636.0,2635.9,0.44062133]
[1729595962030,7.1385287,2636.0,2635.9,0.44062133]
[1729595962228,10.1385287,2636.0,2635.9,0.44062133]
[1729595962427,3.79438,2635.5,2635.2,2.78580477]
[1729595962657,5.45609518,2635.5,2635.3,4.28406429]
[1729595962854,5.45609518,2635.5,2635.4,0.28406429]
[1729595963168,1.66171518,2635.5,2635.4,0.44054303]
[1729595963466,5.45605518,2635.5,2635.4,0.44054303]
[1729595964070,1.66171518,2635.5,2635.4,0.44054303]
[1729595964290,4.5525,2635.6,2635.4,0.44054303]
[1729595964467,4.5525,2635.6,2635.5,0.28406429]
[1729595964827,4.5525,2635.6,2635.5,0.44057727]
[1729595965678,5.387166,2635.6,2635.5,0.44057727]
[1729595966173,5.387166,2635.6,2635.5,0.15651298]
[1729595966485,3.79449,2635.4,2635.0,5.29497]
[1729595966691,3.79449,2635.4,2635.1,0.28411463]
[1729595966978,3.79449,2635.4,2635.2,0.28411463]
[1729595967142,4.5525,2635.6,2635.3,0.28411463]
[1729595967337,4.5525,2635.6,2635.1,3.67602225]
[1729595967338,3.79434,2635.5,2635.1,3.67602225]
[1729595967586,3.79434,2635.5,2635.4,0.28405735]
[1729595969842,0.7583,2635.6,2635.4,0.28405735]
[1729595970038,4.55263,2635.6,2635.5,0.28405735]
[1729595971080,4.55263,2635.6,2635.0,4.28580477]
[1729595971081,3.79434,2635.5,2635.0,4.28580477]
[1729595971390,3.79452,2635.4,2635.1,4.28389738]
[1729595971557,3.79452,2635.4,2635.2,0.28389738]
[1729595971750,3.79452,2635.4,2635.3,0.28389738]
[1729595972346,4.55251,2635.6,2635.3,0.28389738]
[1729595972547,3.79402,2635.8,2635.4,0.28389738]
[1729595972791,6.79417,2635.7,2635.5,0.28389738]
[1729595972987,6.79417,2635.7,2635.6,0.28389738]
[1729595973192,3.0,2635.7,2635.6,0.28389738]
[1729595973691,3.79405,2635.7,2635.6,0.28389738]
[1729595974782,3.79405,2635.7,2635.6,0.28382911]
[1729595974982,3.79405,2635.7,2635.6,0.43765157]
[1729595977092,3.8117,2635.9,2635.6,0.43765157]
[1729595977400,3.79403,2635.8,2635.7,0.28382911]
[1729595977771,3.79403,2635.8,2635.7,0.43758326]
[1729595983208,4.59893,2635.8,2635.7,0.43758326]
[1729595984395,6.25910247,2635.8,2635.7,0.43758326]
[1729595984696,6.25910247,2635.8,2635.7,0.15375415]
[1729595984898,7.43040896,2635.8,2635.7,0.15375415]
[1729595985061,3.79433,2635.6,2635.2,2.77993035]
[1729595985264,5.45450247,2635.6,2635.3,4.0]
[1729595985701,5.45450247,2635.6,2635.2,2.77993035]
[1729595985886,3.79433,2635.6,2635.2,2.77993035]
[1729595986092,3.79433,2635.6,2635.3,0.73996104]
[1729595986396,5.45450247,2635.6,2635.3,0.73996104]
[1729595986597,3.79433,2635.6,2635.3,0.73996104]
[1729595989661,1.66017247,2635.7,2635.3,0.73996104]
[1729595990003,4.59883,2635.8,2635.3,0.73996104]
[1729595990004,3.79393,2635.8,2635.4,0.93803578]
[1729595990308,5.45410247,2635.8,2635.5,0.82378019]
[1729595990461,3.79406,2635.7,2635.4,0.93803578]
[1729595990661,3.79406,2635.7,2635.6,0.15379916]
[1729595990897,3.79406,2635.7,2635.4,0.7841]
[1729595991071,3.79406,2635.7,2635.6,0.15379916]
[1729595991270,3.79406,2635.7,2635.5,0.15386747]
[1729595991470,3.79406,2635.7,2635.6,0.15379916]
[1729595991833,3.79406,2635.7,2635.4,0.7841]
[1729595991990,3.79406,2635.7,2635.6,0.15379916]
[1729595992301,3.79406,2635.7,2635.4,0.7841]
[1729595992505,3.79406,2635.7,2635.6,0.15379916]
[1729595992711,3.79406,2635.7,2635.5,0.15386747]
[1729595992866,3.79406,2635.7,2635.6,0.15379916]
[1729595993067,3.79406,2635.7,2635.4,0.7841]
[1729595993305,3.79406,2635.7,2635.6,0.15378049]
[1729595993490,3.79406,2635.7,2635.5,0.1538488]
[1729595993687,3.79406,2635.7,2635.6,0.15378049]
[1729595993998,3.79406,2635.7,2635.4,0.7841]
[1729595994195,3.79406,2635.7,2635.6,0.15378049]
[1729595994370,3.79406,2635.7,2635.4,0.7841]
[1729595994566,3.79406,2635.7,2635.6,0.15378049]
[1729595994766,3.79406,2635.7,2635.4,0.7841]
[1729595995077,3.79406,2635.7,2635.5,0.1538488]
[1729595998240,11.2463,2636.3,2635.7,0.7841]
[1729595998535,3.79327,2636.3,2635.8,0.24442725]
[1729595998693,3.79327,2636.3,2635.9,4.57786]
[1729595999098,5.45344247,2636.3,2636.0,0.15346067]
[1729595999405,3.79327,2636.3,2636.0,0.15346067]
[1729596000530,5.45317247,2636.5,2636.0,4.65103546]
[1729596000830,5.45317247,2636.5,2636.1,0.7841]
[1729596000831,1.66017247,2636.4,2636.1,0.7841]
[1729596001000,5.45330247,2636.4,2636.1,0.93734322]
[1729596001332,5.45336247,2636.3,2636.1,0.93734322]
[1729596001697,5.45322247,2636.4,2636.1,0.93734322]
[1729596002331,5.45350247,2636.2,2636.1,0.15324322]
[1729596002899,3.79354,2636.1,2635.8,0.7637]
[1729596003101,3.79354,2636.1,2635.9,4.0]
[1729596005042,3.79354,2636.1,2636.0,0.15296194]
[1729596005247,3.79354,2636.1,2635.8,0.7637]
[1729596005541,3.79354,2636.1,2636.0,0.15296194]
[1729596005715,3.79354,2636.1,2635.9,0.15303023]
[1729596005916,3.79354,2636.1,2636.0,0.15296194]
[1729596006343,3.79354,2636.1,2635.8,0.7637]
[1729596006543,3.79354,2636.1,2636.0,0.15296194]
[1729596006709,3.79354,2636.1,2635.9,0.15303023]
[1729596006910,3.79354,2636.1,2636.0,0.15296194]
[1729596007309,3.79354,2636.1,2635.8,0.7637]
[1729596007509,3.79354,2636.1,2636.0,0.15296194]
[1729596007712,3.79354,2636.1,2635.9,0.15303023]
[1729596007947,3.79354,2636.1,2636.0,0.15296194]
[1729596008314,3.79333,2636.2,2635.8,0.7637]
[1729596008529,3.79333,2636.2,2636.0,0.15118055]
[1729596008727,3.79333,2636.2,2635.9,4.15124884]
[1729596008918,3.79333,2636.2,2636.1,0.15111227]
[1729596009116,3.79348,2636.1,2636.0,0.15118055]
[1729596009321,3.79348,2636.1,2635.9,4.0]
[1729596010010,3.79311,2636.4,2636.0,0.7591]
[1729596010437,3.79311,2636.4,2636.0,4.7591]
[1729596011137,7.58624,2636.4,2636.0,4.7591]
[1729596011334,3.79327,2636.3,2636.0,4.7591]
[1729596011538,3.79337,2636.2,2636.0,4.7591]
[1729596011850,3.79327,2636.3,2636.0,4.7591]
[1729596015114,7.58659,2636.3,2636.0,4.7591]
[1729596015756,3.79327,2636.3,2636.0,4.7591]
[1729596016057,7.58656,2636.3,2636.0,4.7591]
[1729596016428,3.79335,2636.2,2636.0,4.7591]
[1729596020272,3.79335,2636.2,2636.1,0.15111227]
[1729596023952,4.552012,2636.2,2636.1,0.15111227]
[1729596025476,3.79335,2636.2,2636.1,0.15111227]
[1729596026195,3.79334,2636.2,2636.1,0.15109832]
[1729596027164,3.79305,2636.4,2636.1,0.15109832]
[1729596027494,3.79306,2636.4,2636.1,1.81048669]
[1729596027695,3.79306,2636.4,2636.1,0.15109832]
[1729596028052,3.79321,2636.3,2636.1,0.15109832]
[1729596029150,7.58652,2636.3,2636.1,0.15109832]
[1729596029350,3.79321,2636.3,2636.1,0.15109832]
[1729596029793,3.79305,2636.4,2636.1,0.15109832]
[1729596030263,3.79305,2636.4,2636.1,4.15109832]
[1729596030456,3.79323,2636.3,2636.1,4.15109832]
[1729596031694,3.79305,2636.4,2636.1,4.15109832]
[1729596031991,3.79305,2636.4,2636.1,4.82017384]
[1729596032154,3.79305,2636.4,2636.1,4.86776282]
[1729596032354,3.79305,2636.4,2636.1,6.52715119]
[1729596032649,3.7932,2636.3,2636.1,4.86776282]
[1729596032975,3.7932,2636.3,2636.1,4.1986873]
[1729596037195,3.79333,2636.2,2636.1,4.1986873]
[1729596041173,3.79327,2636.3,2636.1,4.1986873]
[1729596041371,3.79333,2636.2,2636.1,4.1986873]
[1729596041976,3.79306,2636.4,2636.1,6.97798648]
[1729596042378,3.79321,2636.3,2636.1,6.97798648]
[1729596044100,3.79306,2636.4,2636.1,6.97798648]
[1729596044602,3.79306,2636.4,2636.1,2.97798648]
[1729596045699,3.79288,2636.6,2636.1,3.90153197]
[1729596045910,3.79258,2636.8,2636.5,1.65938837]
[1729596046063,4.59076,2637.0,2636.4,4.58093]
[1729596046263,3.79202,2637.2,2636.8,0.7879]
[1729596046465,3.79219,2637.0,2636.8,0.7879]
[1729596046867,3.79219,2637.0,2636.9,0.19793625]
[1729596050092,3.79218,2637.0,2636.9,0.19793625]
[1729596052267,3.79204,2637.1,2636.9,1.85732462]
[1729596052586,3.79192,2637.2,2636.9,0.19793625]
[1729596052964,3.79218,2637.0,2636.9,0.19793625]
[1729596053878,3.79218,2637.0,2636.9,4.19793625]
[1729596055507,3.79218,2637.0,2636.9,0.19793625]
[1729596055719,3.79237,2636.9,2636.6,2.44658837]
[1729596056015,3.79237,2636.9,2636.7,4.31826113]
[1729596058831,3.79237,2636.9,2636.7,4.0]
[1729596058832,5.45185837,2636.8,2636.7,4.0]
[1729596059319,3.79247,2636.8,2636.7,4.0]
[1729596061931,3.79272,2636.7,2636.5,4.0]
[1729596062603,3.79244,2636.9,2636.5,6.58407755]
[1729596062794,3.79244,2636.9,2636.7,0.7675]
[1729596064001,3.79247,2636.8,2636.7,0.7675]
[1729596064523,3.79218,2637.0,2636.7,0.7675]
[1729596064717,3.79234,2636.9,2636.7,0.7675]
[1729596065018,3.79234,2636.9,2636.8,0.19748069]
[1729596065921,3.79234,2636.9,2636.8,4.19748069]
[1729596066418,3.79218,2637.0,2636.8,4.19748069]
[1729596066620,7.58446,2637.0,2636.8,4.19748069]
[1729596067611,3.79233,2636.9,2636.8,4.19748069]
[1729596067811,7.5845,2637.0,2636.8,4.19748069]
[1729596068121,3.79233,2636.9,2636.8,4.19748069]
[1729596071928,6.45824821,2636.9,2636.8,0.19748069]
[1729596072108,3.79271,2636.7,2636.4,3.59676468]
[1729596072301,3.79278,2636.6,2636.4,4.04894441]
[1729596072505,3.79278,2636.6,2636.4,3.59676468]
[1729596073604,3.7929,2636.5,2636.4,3.59676468]
[1729596073831,3.7929,2636.5,2636.4,2.76966468]
[1729596075003,3.7929,2636.5,2636.4,4.0]
[1729596077507,3.7929,2636.5,2636.4,4.45259847]
[1729596077806,3.7929,2636.5,2636.4,4.0]
[1729596078255,3.7924,2636.9,2636.5,0.7939]
[1729596078542,3.79247,2636.8,2636.5,6.90588684]
[1729596078745,3.79247,2636.8,2636.5,5.24649847]
[1729596079748,3.79273,2636.7,2636.5,5.24649847]
[1729596079931,3.79247,2636.8,2636.6,0.1975278]
[1729596080247,3.79261,2636.7,2636.6,4.1975278]
[1729596080629,7.58502,2636.8,2636.6,4.1975278]
[1729596080831,3.79247,2636.8,2636.6,4.1975278]
[1729596081036,3.79261,2636.7,2636.6,4.1975278]
[1729596082155,7.58507,2636.8,2636.6,4.1975278]
[1729596082323,3.79261,2636.7,2636.6,4.1975278]
[1729596084329,3.79261,2636.7,2636.6,4.65012627]
[1729596084875,3.79261,2636.7,2636.6,4.1975278]
[1729596085276,3.79261,2636.7,2636.6,4.65012627]
[1729596085447,3.79261,2636.7,2636.6,4.1975278]
[1729596085785,3.79261,2636.7,2636.6,4.65012627]
[1729596086069,3.79261,2636.7,2636.6,4.1975278]
[1729596088080,3.79261,2636.7,2636.6,0.1975278]
[1729596088241,5.45199837,2636.7,2636.6,0.1975278]
[1729596088447,3.7929,2636.5,2636.4,2.77580381]
[1729596088635,2.93865657,2636.5,2636.4,3.13184419]
[1729596088839,3.79278,2636.6,2636.4,3.32951213]
[1729596089346,3.79278,2636.6,2636.5,2.77580381]
[1729596089604,3.79278,2636.6,2636.5,0.19759787]
[1729596090599,3.79278,2636.6,2636.5,2.9751976]
[1729596090800,3.79276,2636.6,2636.5,2.77759973]
[1729596091015,3.79276,2636.6,2636.5,6.9751976]
[1729596091301,5.45214837,2636.6,2636.5,0.19759787]
[1729596091496,6.45733421,2636.6,2636.5,0.19759787]
[1729596091699,2.66457421,2636.6,2636.2,2.77759973]
[1729596091935,5.45257837,2636.3,2636.2,2.77759973]
[1729596092085,3.79333,2636.2,2636.1,2.77759973]
[1729596092288,6.24041837,2636.2,2636.1,2.77759973]
[1729596092526,4.58119,2636.1,2635.7,3.37141006]
[1729596092687,5.45329837,2635.8,2635.7,0.59381033]
[1729596094931,5.45329837,2635.8,2635.7,0.77875799]
[1729596096192,7.16210621,2635.8,2635.7,0.18494766]
[1729596096594,7.16210621,2635.8,2635.2,0.59405465]
[1729596096595,3.79455,2635.4,2635.2,0.59405465]
[1729596097341,7.58913,2635.4,2635.2,0.59405465]
[1729596097694,3.79455,2635.4,2635.2,0.59405465]
[1729596098301,3.79463,2635.3,2635.2,0.59405465]
[1729596098523,7.58917,2635.4,2635.2,0.90167895]
[1729596099040,3.79455,2635.4,2635.2,0.90167895]
[1729596103611,3.7943,2635.6,2635.3,1.65938837]
[1729596103850,3.96758105,2636.7,2635.5,1.65938837]
[1729596103851,3.79377,2635.9,2635.5,1.65938837]
[1729596104148,3.7937,2636.0,2635.5,2.28364121]
[1729596104767,3.79392,2635.8,2635.5,0.62425284]
[1729596106389,3.79392,2635.8,2635.7,0.8003]
[1729596109079,3.79426,2635.6,2635.4,0.8311]
[1729596109379,3.79426,2635.6,2635.2,2.01509066]
[1729596109699,7.58858,2635.6,2635.3,2.02683627]
[1729596109842,7.58858,2635.6,2635.3,0.3674479]
[1729596110186,3.79426,2635.6,2635.4,0.18586593]
[1729596110678,3.79401,2635.8,2635.6,0.7593]
[1729596110882,7.58803,2635.8,2635.6,0.7593]
[1729596111045,7.58803,2635.8,2635.7,0.18565557]
[1729596111765,9.24741837,2635.8,2635.7,0.18565557]
[1729596114982,3.79432,2635.6,2635.4,0.8218]
[1729596115194,3.79434,2635.5,2635.4,0.8218]
[1729596116520,5.45372837,2635.5,2635.4,0.8218]
[1729596116823,5.45372837,2635.5,2635.2,1.37095465]
[1729596117123,3.79421,2635.6,2635.3,0.07588483]
[1729596117324,3.79421,2635.6,2635.3,0.76599662]
[1729596117699,3.79421,2635.6,2635.3,0.69011179]
[1729596118028,3.79421,2635.6,2635.3,0.76599504]
[1729596120324,3.79421,2635.6,2635.3,0.69011179]
[1729596120325,7.58854,2635.6,2635.3,0.69011179]
[1729596120526,9.24792837,2635.6,2635.3,0.69011179]
[1729596120724,9.24792837,2635.6,2635.4,0.23433999]
[1729596120966,7.58854,2635.6,2635.4,0.23433999]
[1729596121128,7.58849,2635.6,2635.4,0.23433999]
[1729596121317,3.79421,2635.6,2635.4,0.23433999]
[1729596121753,3.79434,2635.5,2635.4,0.23433999]
[1729596123250,5.45372837,2635.5,2635.4,0.23433999]
[1729596123452,3.79463,2635.3,2635.2,1.37095465]
[1729596124938,3.79463,2635.3,2635.2,1.55692846]
[1729596126048,3.79463,2635.3,2635.2,1.8397008]
[1729596126249,3.79463,2635.3,2635.2,1.55692846]
[1729596126536,3.79463,2635.3,2635.2,1.8397008]
[1729596126922,3.79463,2635.3,2635.2,1.55692846]
[1729596127124,3.79463,2635.3,2635.2,2.02559057]
[1729596127353,3.79463,2635.3,2635.2,2.30836291]
[1729596127594,3.79463,2635.3,2635.2,1.55692846]
[1729596127889,3.7945,2635.4,2635.2,1.8397008]
[1729596128099,3.7945,2635.4,2635.2,1.55692846]
[1729596128303,3.7945,2635.4,2635.2,1.8397008]
[1729596128455,3.7945,2635.4,2635.2,1.55692846]
[1729596128655,3.7945,2635.4,2635.2,1.8397008]
[1729596128990,3.7945,2635.4,2635.2,2.01811207]
[1729596129388,3.7945,2635.4,2635.3,0.28277234]
[1729596129594,3.7945,2635.4,2635.3,0.46874543]
[1729596130096,5.45388837,2635.4,2635.3,0.18597309]
[1729596130397,5.45388837,2635.4,2635.2,0.87682699]
[1729596130579,3.79463,2635.3,2635.2,0.59405465]
[1729596130783,3.79463,2635.3,2635.2,0.87708862]
[1729596131096,3.7945,2635.4,2635.2,1.24201101]
[1729596131263,3.79406,2635.7,2635.3,0.28303397]
[1729596131604,3.79406,2635.7,2635.4,0.28303397]
[1729596131758,5.45344837,2635.7,2635.5,0.28303397]
[1729596132095,5.45344837,2635.7,2635.4,0.28303397]
[1729596132301,1.65938837,2635.6,2635.5,0.28303397]
[1729596133097,5.45340837,2635.8,2635.6,0.8327]
[1729596133292,0.7627,2636.1,2635.6,0.8327]
[1729596133293,3.79371,2636.0,2635.7,0.28310634]
[1729596133480,5.45315837,2635.9,2635.8,0.28310634]
[1729596133669,3.79391,2635.8,2635.7,0.28310634]
[1729596133881,1.65938837,2635.8,2635.7,0.28311293]
[1729596134087,3.79377,2635.9,2635.7,0.67190775]
[1729596134270,5.45315837,2635.9,2635.8,0.28311293]
[1729596134606,3.79377,2635.9,2635.8,0.28311293]
[1729596135008,5.45315837,2635.9,2635.8,0.28311293]
[1729596136409,5.45315837,2635.9,2635.6,3.60483526]
[1729596136573,5.45315837,2635.9,2635.8,0.28346971]
[1729596137316,4.59871822,2635.9,2635.8,0.28346971]
[1729596138413,4.59871822,2635.9,2635.8,3.06190669]
[1729596139115,4.59871822,2635.9,2635.8,0.28346971]
[1729596140034,4.59871822,2635.9,2635.8,0.46905056]
[1729596143947,4.59871822,2635.9,2635.8,0.18558085]
[1729596144105,4.59871822,2635.9,2635.8,0.46925203]
[1729596148346,5.40181822,2635.9,2635.8,0.46925203]
[1729596148643,6.48730088,2635.9,2635.8,0.46925203]
[1729596150552,9.48730088,2635.9,2635.8,0.46925203]
[1729596150851,9.48730088,2635.9,2635.8,0.28367118]
[1729596154815,8.40181822,2635.9,2635.8,0.28367118]
[1729596155019,5.40181822,2635.9,2635.8,0.28367118]
[1729596155252,4.59871822,2635.9,2635.8,0.28367118]
[1729596155559,4.59871822,2635.9,2635.8,0.46932144]
[1729596164991,4.59871822,2635.9,2635.8,1.29672144]
[1729596166007,4.59871822,2635.9,2635.8,0.46932144]
[1729596168738,4.59871822,2635.9,2635.8,0.46956794]
[1729596169038,5.42021822,2635.9,2635.8,0.46956794]
[1729596170134,4.59871822,2635.9,2635.8,0.46956794]
[1729596171834,4.59871822,2635.9,2635.8,0.18565026]
[1729596172138,4.59871822,2635.9,2635.8,0.28392781]
[1729596172319,5.45315837,2635.9,2635.8,0.28394206]
[1729596172519,5.45315837,2635.9,2635.8,0.46969879]
[1729596176037,5.45315837,2635.9,2635.8,0.46962487]
[1729596181556,6.25775837,2635.9,2635.8,0.46962487]
[1729596181713,7.42883504,2635.9,2635.8,0.46962487]
[1729596181913,7.42883504,2635.9,2635.8,0.18575673]
[1729596182251,7.42883504,2635.9,2635.8,0.28393048]
[1729596182445,7.42883504,2635.9,2635.8,0.46971036]
[1729596182446,10.42883504,2635.9,2635.8,0.46971036]
[1729596182815,10.42883504,2635.9,2635.8,0.28393048]
[1729596186336,3.79449,2635.4,2635.3,0.5940136]
[1729596186531,5.45387837,2635.4,2635.3,0.78023202]
[1729596188954,5.45387837,2635.4,2635.3,0.18621842]
[1729596189278,3.79479,2635.2,2634.8,1.37415757]
[1729596189578,3.79492,2635.1,2635.0,2.78308891]
[1729596189768,3.79506,2635.0,2634.9,4.0]
[1729596189967,5.45444837,2635.0,2634.9,4.0]
[1729596190482,5.45444837,2635.0,2634.9,6.78340405]
[1729596190654,3.79506,2635.0,2634.9,6.78340405]
[1729596191779,3.79506,2635.0,2634.9,5.3387557]
[1729596191981,2.94036441,2635.0,2634.9,5.3387557]
[1729596192348,2.94036441,2635.0,2634.9,1.3387557]
[1729596192858,2.94036441,2635.0,2634.8,1.37415757]
[1729596193558,1.65938837,2635.3,2635.0,0.78]
[1729596193559,3.79472,2635.3,2635.0,0.78]
[1729596193763,3.79472,2635.3,2635.0,0.85589323]
[1729596194457,3.79472,2635.3,2635.0,0.78]
[1729596195282,3.79472,2635.3,2635.0,4.0]
[1729596195482,3.79472,2635.3,2635.2,0.8057]
[1729596195864,3.79445,2635.5,2635.2,0.8057]
[1729596196468,3.79445,2635.5,2635.2,4.8057]
[1729596196658,7.58892,2635.5,2635.2,4.8057]
[1729596196990,7.58891,2635.5,2635.2,4.8057]
[1729596197171,7.58891,2635.5,2635.3,0.52057]
[1729596197372,3.79449,2635.4,2635.3,4.52057]
[1729596198348,5.45387837,2635.4,2635.3,4.52057]
[1729596198548,3.79449,2635.4,2635.3,4.52057]
[1729596199972,3.79449,2635.4,2635.3,4.70678842]
[1729596201091,3.79449,2635.4,2635.3,7.49052273]
[1729596201851,3.79449,2635.4,2635.3,7.49030885]
[1729596204489,3.79449,2635.4,2635.3,4.70678842]
[1729596205466,3.79449,2635.4,2635.3,7.49030885]
[1729596206555,3.79449,2635.4,2635.3,7.48974651]
[1729596208797,3.79435,2635.5,2635.4,0.7522]
[1729596208971,3.79435,2635.5,2635.4,8.35935274]
[1729596209168,3.79435,2635.5,2635.4,8.53934971]
[1729596211702,3.79435,2635.5,2635.4,8.53934154]
[1729596212065,7.58848,2635.6,2635.4,5.75639162]
[1729596212395,3.7942,2635.6,2635.5,2.78256454]
[1729596212596,3.7942,2635.6,2635.5,6.96250991]
[1729596212805,3.7942,2635.6,2635.5,7.86845737]
[1729596213107,0.7833,2636.2,2635.5,7.86845737]
[1729596213397,3.7942,2635.6,2635.5,5.08589283]
[1729596213600,3.79406,2635.7,2635.5,5.08589283]
[1729596213808,3.79406,2635.7,2635.6,3.81510873]
[1729596214117,3.79406,2635.7,2635.6,7.99481294]
[1729596214406,3.79406,2635.7,2635.6,5.21261032]
[1729596215211,3.79406,2635.7,2635.6,7.99464103]
[1729596216231,7.58799,2635.8,2635.6,8.80764103]
[1729596216387,3.79397,2635.8,2635.7,0.8807641]
[1729596216588,3.79397,2635.8,2635.7,5.06044887]
[1729596217383,3.79397,2635.8,2635.7,4.17968477]
[1729596217710,5.45335837,2635.8,2635.7,4.17968477]
[1729596218468,3.79397,2635.8,2635.7,4.17968477]
[1729596220075,3.79369,2636.0,2635.7,4.17968477]
[1729596220424,7.58714,2636.1,2635.9,0.813]
[1729596220707,3.79357,2636.1,2635.9,4.813]
[1729596220908,3.79357,2636.1,2636.0,0.17942354]
[1729596221707,3.79357,2636.1,2636.0,4.17942354]
[1729596222026,3.79357,2636.1,2636.0,4.84497645]
[1729596222835,5.45295837,2636.1,2636.0,4.84497645]
[1729596223044,5.45295837,2636.1,2636.0,4.17942354]
[1729596224491,5.45295837,2636.1,2636.0,0.17942354]
[1729596224891,3.79405,2635.7,2635.6,2.78150102]
[1729596225302,3.04586082,2635.7,2635.6,2.78150102]
[1729596226138,3.04586082,2635.7,2635.6,2.78205853]
[1729596227294,3.04586082,2635.7,2635.6,3.28563438]
[1729596228441,3.79392,2635.8,2635.6,3.28563438]
[1729596228442,7.58792,2635.8,2635.6,3.28563438]
[1729596229612,3.79392,2635.8,2635.7,0.8154]
[1729596229845,3.79392,2635.8,2635.7,0.99476539]
[1729596232215,3.79377,2635.9,2635.7,0.99476539]
[1729596232560,3.79377,2635.9,2635.8,0.42800752]
[1729596232910,3.79377,2635.9,2635.8,0.6073028]
[1729596237458,5.45315837,2635.9,2635.8,0.6073028]
[1729596237627,3.79377,2635.9,2635.8,0.17929528]
[1729596238352,3.79354,2636.1,2635.8,0.17929528]
[1729596238558,3.79354,2636.1,2635.8,3.0379423]
[1729596239060,3.79362,2636.0,2635.9,2.78277734]
[1729596239231,3.79362,2636.0,2635.9,3.34736915]
[1729596240671,3.79362,2636.0,2635.9,0.56459181]
[1729596241037,3.79349,2636.1,2635.9,0.56459181]
[1729596241265,3.79349,2636.1,2635.9,3.34736915]
[1729596241436,3.79362,2636.0,2635.9,0.56459181]
[1729596241933,3.79362,2636.0,2635.9,3.34736915]
[1729596242135,3.79334,2636.2,2636.0,0.8115]
[1729596242344,3.79334,2636.2,2636.1,0.41588692]